fUSD/lending_fUSD_20241222
["ID","MTS","AMOUNT","RATE_DAILY","PERIOD"]
[346264089,1734849048386,-500.0,0.00019726,2]
[346264090,1734849048396,-483.0858166,0.00019726,2]
[346264091,1734849048405,-500.0,0.00019726,2]
[346264092,1734849048414,-500.0,0.00019726,2]
[346264093,1734849048423,-1811.14,0.00019726,2]
[346264094,1734849048433,-500.0,0.00019726,2]
[346264095,1734849048442,-500.0,0.00019726,2]
[346264096,1734849048451,-500.0,0.00019726,2]
[346264097,1734849048461,-887.03,0.00019726,2]
[346264098,1734849048472,-1187.05,0.00019726,2]
[346264099,1734849048482,-500.0,0.00019726,2]
[346264100,1734849048492,-500.0,0.00019726,2]
[346264101,1734849048501,-2931.48,0.00019726,2]
[346264102,1734849048511,-500.0,0.00019726,2]
[346264103,1734849048520,-500.0,0.00019726,2]
[346264104,1734849048530,-881.19,0.00019726,2]
[346264105,1734849048539,-587.8877928,0.00019726,2]
[346264106,1734849048549,-500.0,0.00019726,2]
[346264107,1734849048558,-500.0,0.00019726,2]
[346264108,1734849048567,-813.97,0.00019726,2]
[346264109,1734849048578,-500.0,0.00019726,2]
[346264110,1734849048587,-500.0,0.00019726,2]
[346264111,1734849048596,-545.51,0.00019726,2]
[346264112,1734849048605,-500.0,0.00019726,2]
[346264113,1734849048615,-500.0,0.00019726,2]
[346264114,1734849048624,-500.0,0.00019726,2]
[346264115,1734849048634,-500.0,0.00019726,2]
[346264116,1734849048643,-500.0,0.00019726,2]
[346264117,1734849048652,-500.0,0.00019726,2]
[346264118,1734849048662,-500.0,0.00019726,2]
[346264119,1734849048671,-500.0,0.00019726,2]
[346264120,1734849048680,-730.97,0.00019726,2]
[346264121,1734849048690,-500.0,0.00019726,2]
[346264122,1734849048699,-500.0,0.00019726,2]
[346264123,1734849048710,-2823.97,0.00019726,2]
[346264124,1734849048719,-911.2,0.00019726,2]
[346264125,1734849048729,-2061.71,0.00019726,2]
[346264126,1734849048738,-739.61,0.00019726,2]
[346264127,1734849048747,-1567.92,0.00019726,2]
[346264128,1734849048757,-500.0,0.00019726,2]
[346264129,1734849048766,-1407.04,0.00019726,2]
[346264130,1734849048776,-4354.06,0.00019726,2]
[346264131,1734849048785,-500.0,0.00019726,2]
[346264132,1734849048795,-500.0,0.00019726,2]
[346264133,1734849048805,-500.0,0.00019726,2]
[346264134,1734849048814,-423.71938834,0.00019726,2]
[346264135,1734849048824,-870.2,0.00019726,2]
[346264136,1734849048833,-1170.54,0.00019726,2]
[346264137,1734849048842,-500.0,0.00019726,2]
[346264138,1734849048852,-977.1,0.00019726,2]
[346264139,1734849048861,-1038.05,0.00019726,2]
[346264140,1734849048870,-548.69,0.00019726,2]
[346264141,1734849048880,-500.0,0.00019726,2]
[346264142,1734849048889,-500.0,0.00019726,2]
[346264143,1734849048898,-15083.66,0.00019726,2]
[346264144,1734849048907,-660.75,0.00019726,2]
[346264145,1734849048916,-500.0,0.00019726,2]
[346264146,1734849048926,-919.05,0.00019726,2]
[346264147,1734849048935,-500.0,0.00019726,2]
[346264148,1734849048944,-4947.68,0.00019726,2]
[346264149,1734849048954,-572.0,0.00019726,2]
[346264150,1734849048964,-500.0,0.00019726,2]
[346264151,1734849048973,-500.0,0.00019726,2]
[346264152,1734849048983,-1228.55,0.00019726,2]
[346264153,1734849048992,-500.0,0.00019726,2]
[346264154,1734849049002,-846.72,0.00019726,2]
[346264155,1734849049011,-838.4,0.00019726,2]
[346264156,1734849049023,-500.0,0.00019726,2]
[346264157,1734849049032,-622.29,0.00019726,2]
[346264158,1734849049042,-1069.61,0.00019726,2]
[346264159,1734849049051,-500.0,0.00019726,2]
[346264160,1734849049060,-767.17,0.00019726,2]
[346264161,1734849049070,-500.0,0.00019726,2]
[346264162,1734849049080,-500.0,0.00019726,2]
[346264163,1734849049090,-649.29,0.00019726,2]
[346264164,1734849049257,-681.55,0.00019726,2]
[346264165,1734849049267,-5257.79,0.00019726,2]
[346264166,1734849049277,-459.18405619,0.00019726,2]
[346264167,1734849049287,-500.0,0.00019726,2]
[346264168,1734849049297,-500.0,0.00019726,2]
[346264169,1734849049307,-2005.26,0.00019726,2]
[346264170,1734849049316,-1054.88,0.00019726,2]
[346264171,1734849049326,-642.42,0.00019726,2]
[346264172,1734849049335,-500.0,0.00019726,2]
[346264173,1734849049345,-500.0,0.00019726,2]
[346264174,1734849049355,-631.64,0.00019726,2]
[346264175,1734849049365,-2829.96,0.00019726,2]
[346264176,1734849049374,-500.0,0.00019726,2]
[346264177,1734849049385,-500.0,0.00019726,2]
[346264178,1734849049395,-500.0,0.00019726,2]
[346264179,1734849049404,-500.0,0.00019726,2]
[346264180,1734849049414,-3809.44,0.00019726,2]
[346264181,1734849049423,-500.0,0.00019726,2]
[346264182,1734849049433,-4348.76,0.00019726,2]
[346264183,1734849049443,-513.59251238,0.00019726,2]
[346264184,1734849049452,-1151.04,0.00019726,2]
[346264185,1734849049463,-861.03,0.00019726,2]
[346264186,1734849049472,-1574.76,0.00019726,2]
[346264187,1734849049482,-819.63,0.00019726,2]
[346264188,1734849049492,-316.17799297,0.00019726,2]
[346264189,1734849049501,-608.73,0.00019726,2]
[346264190,1734849049511,-783.99,0.00019726,2]
[346264191,1734849049520,-500.0,0.00019726,2]
[346264192,1734849049530,-2472.25,0.00019726,2]
[346264193,1734849049539,-18079.52,0.00019726,2]
[346264194,1734849049548,-2570.11,0.00019726,2]
[346264195,1734849049558,-949.68,0.00019726,2]
[346264196,1734849049567,-2006.27,0.00019726,2]
[346264197,1734849049576,-775.91,0.00019726,2]
[346264198,1734849049586,-3521.09,0.00019726,2]
[346264199,1734849049595,-6880.23,0.00019726,2]
[346264200,1734849049605,-500.0,0.00019726,2]
[346264201,1734849049614,-1153.45,0.00019726,2]
[346264202,1734849049623,-1503.45,0.00019726,2]
[346264203,1734849049632,-1488.98,0.00019726,2]
[346264204,1734849049642,-1124.52,0.00019726,2]
[346264205,1734849049651,-500.0,0.00019726,2]
[346264206,1734849049660,-1038.88,0.00019726,2]
[346264207,1734849049669,-579.99,0.00019726,2]
[346264208,1734849049679,-910.23,0.00019726,2]
[346264209,1734849049688,-1725.35,0.00019726,2]
[346264210,1734849049699,-2707.35,0.00019726,2]
[346264211,1734849049708,-500.0,0.00019726,2]
[346264212,1734849049718,-500.0,0.00019726,2]
[346264213,1734849049728,-8581.97,0.00019726,2]
[346264214,1734849049738,-766.2,0.00019726,2]
[346264215,1734849049748,-894.34,0.00019726,2]
[346264216,1734849049757,-500.0,0.00019726,2]
[346264217,1734849049766,-1278.01,0.00019726,2]
[346264218,1734849049776,-503.34,0.00019726,2]
[346264219,1734849049785,-500.0,0.00019726,2]
[346264220,1734849049794,-667.38,0.00019726,2]
[346264221,1734849049804,-500.0,0.00019726,2]
[346264222,1734849049813,-4182.35,0.00019726,2]
[346264223,1734849049823,-1237.06,0.00019726,2]
[346264224,1734849049832,-12265.07,0.00019726,2]
[346264225,1734849049842,-500.0,0.00019726,2]
[346264226,1734849049851,-10572.53,0.00019726,2]
[346264227,1734849049860,-5523.66,0.00019726,2]
[346264228,1734849049869,-500.0,0.00019726,2]
[346264229,1734849049878,-500.0,0.00019726,2]
[346264230,1734849049887,-6210.17,0.00019726,2]
[346264231,1734849049897,-651.82,0.00019726,2]
[346264232,1734849049906,-2662.25,0.00019726,2]
[346264233,1734849049915,-2003.12,0.00019726,2]
[346264234,1734849049924,-500.0,0.00019726,2]
[346264235,1734849049933,-750.58,0.00019726,2]
[346264236,1734849049942,-500.0,0.00019726,2]
[346264237,1734849049952,-4663.8,0.00019726,2]
[346264238,1734849049961,-500.0,0.00019726,2]
[346264239,1734849049971,-4181.95,0.00019726,2]
[346264240,1734849049980,-500.0,0.00019726,2]
[346264241,1734849049990,-500.0,0.00019726,2]
[346264242,1734849049999,-627.07,0.00019726,2]
[346264243,1734849050008,-500.0,0.00019726,2]
[346264244,1734849050021,-1000.0,0.00019726,2]
[346264245,1734849050030,-498.94955,0.00019726,2]
[346264246,1734849050040,-500.0,0.00019726,2]
[346264247,1734849050049,-500.0,0.00019726,2]
[346264248,1734849050059,-3528.71,0.00019726,2]
[346264249,1734849050068,-502.51,0.00019726,2]
[346264250,1734849050078,-902.08,0.00019726,2]
[346264251,1734849050087,-500.0,0.00019726,2]
[346264252,1734849050098,-500.0,0.00019726,2]
[346264253,1734849050108,-500.0,0.00019726,2]
[346264254,1734849050117,-2248.15,0.00019726,2]
[346264255,1734849050126,-1992.93,0.00019726,2]
[346264256,1734849050136,-990.97,0.00019726,2]
[346264257,1734849050146,-500.0,0.00019726,2]
[346264258,1734849050155,-500.0,0.00019726,2]
[346264259,1734849050164,-2116.88,0.00019726,2]
[346264260,1734849050174,-997.89,0.00019726,2]
[346264261,1734849050183,-500.0,0.00019726,2]
[346264262,1734849050191,-500.0,0.00019726,2]
[346264263,1734849050201,-500.0,0.00019726,2]
[346264264,1734849050210,-628.63,0.00019726,2]
[346264265,1734849050219,-531.60008467,0.00019726,2]
[346264266,1734849050228,-741.9,0.00019726,2]
[346264267,1734849050237,-500.0,0.00019726,2]
[346264268,1734849050246,-500.0,0.00019726,2]
[346264269,1734849050256,-500.0,0.00019726,2]
[346264270,1734849050265,-500.0,0.00019726,2]
[346264271,1734849050274,-500.0,0.00019726,2]
[346264272,1734849050283,-500.0,0.00019726,2]
[346264273,1734849050292,-500.0,0.00019726,2]
[346264274,1734849050301,-500.0,0.00019726,2]
[346264275,1734849050310,-500.0,0.00019726,2]
[346264276,1734849050319,-500.0,0.00019726,2]
[346264277,1734849050328,-500.0,0.00019726,2]
[346264278,1734849050337,-500.0,0.00019726,2]
[346264279,1734849050347,-500.0,0.00019726,2]
[346264280,1734849050356,-150.0,0.00019729,2]
[346264281,1734849050365,-217.68498031,0.00019747,2]
[346264282,1734849050374,-153.0,0.00019748,2]
[346264283,1734849050384,-153.0,0.00019748,2]
[346264284,1734849050393,-153.0,0.00019748,2]
[346264285,1734849050403,-153.0,0.00019748,2]
[346264286,1734849050412,-153.0,0.00019748,2]
[346264287,1734849050421,-501.11036789,0.00019773,2]
[346264288,1734849050431,-500.79793072,0.00019773,2]
[346264289,1734849050440,-158.68352482,0.00019773,2]
[346264290,1734849050449,-2112.8698299,0.00019786,2]
[346264291,1734849050459,-1612.0866771,0.00019786,2]
[346264292,1734849050468,-1111.3035243,0.00019786,2]
[346264293,1734849050478,-610.5203714,0.00019786,2]
[346264294,1734849050487,-5388.6418318,0.00019786,2]
[346264295,1734849050496,-4735.4363101,0.00019786,2]
[346264296,1734849050505,-4082.2307883,0.00019786,2]
[346264297,1734849050514,-3429.0252666,0.00019786,2]
[346264298,1734849050523,-40000.0,0.0001979,2]
[346264299,1734849050532,-163.122211,0.00019798,3]
[346264300,1734849050541,-163.122211,0.00019798,2]
[346264301,1734849050550,-163.122211,0.00019798,3]
[346264302,1734849050559,-163.122211,0.00019798,2]
[346264303,1734849050568,-163.122211,0.00019798,3]
[346264304,1734849050577,-163.122211,0.00019798,3]
[346264305,1734849050587,-163.122211,0.00019798,2]
[346264306,1734849050595,-500.0,0.00019799,2]
[346264307,1734849050604,-150.0,0.00019799,2]
[346264308,1734849050613,-150.0,0.00019799,2]
[346264309,1734849050622,-97526.61057404,0.000198,2]
[346264310,1734849050862,-279618.51599792,0.000198,2]
[346264311,1734849050871,-216396.22622181,0.000198,2]
[346264312,1734849050883,-24593.62384073,0.000198,2]
[346264313,1734849050893,-856.2799995,0.000198,2]
[346264314,1734849050904,-965.9,0.000198,2]
[346264315,1734849050915,-674.463281,0.000198,2]
[346264316,1734849050934,-278.20000002,0.000198,2]
[346264317,1734849050945,-23166.18602036,0.000198,2]
[346264318,1734849050956,-4739.19936288,0.000198,2]
[346264319,1734849051479,-153.0,0.00019646,2]
[346264320,1734849051489,-864.4,0.000198,2]
[346264321,1734849051503,-153.0,0.00019646,2]
[346264322,1734849051512,-123.90999226,0.000198,2]
[346264323,1734849051523,-181740.00001,0.000198,2]
[346264324,1734849051534,-42775.7115016,0.000198,2]
[346264325,1734849051816,-2825.89976984,0.000198,2]
[346264326,1734849051826,-500000.0,0.000198,2]
[346264327,1734849051835,-125152.47499429,0.000198,2]
[346264328,1734849052132,-5570.45453968,0.000198,2]
[346264329,1734849052143,-52870.8446,0.000198,2]
[346264330,1734849052308,-24955.581605,0.000198,2]
[346264331,1734849776123,450.0,0.00013,2]
[346264332,1734849777261,500.0,0.00015,2]
[346264333,1734849860833,155.31,0.00010137,2]
[346264334,1734850040713,160.39,0.0001483,2]
[346264338,1734850231966,-257.58,0.00016617,2]
[346264339,1734850231976,-1056.0,0.00016849,2]
[346264340,1734850231986,-550.0,0.00017,2]
[346264341,1734850231995,-500.0,0.00017664,2]
[346264342,1734850232004,-500.0,0.00017664,2]
[346264343,1734850232014,-500.0,0.00018484,2]
[346264344,1734850232023,-2804.34,0.00018554,2]
[346264345,1734850232033,-250.0,0.00018569,2]
[346264346,1734850232042,-395.01,0.00018628,2]
[346264347,1734850232052,-152.31,0.00018664,2]
[346264348,1734850232061,-172.24,0.00018694,2]
[346264349,1734850232071,-1000.0,0.00018728,2]
[346264350,1734850232080,-372.687,0.0001881,2]
[346264351,1734850232089,-257.58,0.00018881,2]
[346264352,1734850232099,-165.15342726,0.00019078,2]
[346264353,1734850232108,-500.0,0.00019178,2]
[346264354,1734850232117,-500.0,0.00019178,2]
[346264355,1734850232127,-500.0,0.00019178,2]
[346264356,1734850232136,-500.0,0.00019178,2]
[346264357,1734850232145,-500.0,0.00019178,2]
[346264358,1734850232155,-500.0,0.00019178,2]
[346264359,1734850232165,-500.0,0.00019178,2]
[346264360,1734850232174,-500.0,0.00019178,2]
[346264361,1734850232184,-500.0,0.00019178,2]
[346264362,1734850232193,-500.0,0.00019178,2]
[346264363,1734850232202,-590.76,0.00019178,2]
[346264364,1734850232212,-500.0,0.00019178,2]
[346264365,1734850232226,-500.0,0.00019178,2]
[346264366,1734850232238,-500.0,0.00019178,2]
[346264367,1734850232252,-217.47610685,0.00019178,2]
[346264368,1734850232269,-282.52389315,0.00019178,2]
[346264369,1734850232280,-12.96799898,0.00019178,2]
[346264370,1734850232365,-497.42398838,0.00019178,2]
[346264371,1734850232378,-500.0,0.00019178,2]
[346264372,1734850232391,-500.0,0.00019178,2]
[346264373,1734850232403,-386.72831519,0.00019178,2]
[346264374,1734850232423,-500.0,0.00019178,2]
[346264375,1734850232438,-500.0,0.00019178,2]
[346264377,1734850232449,-500.0,0.00019178,2]
[346264379,1734850232461,-500.0,0.00019178,2]
[346264381,1734850232474,-500.0,0.00019178,2]
[346264383,1734850232487,-500.0,0.00019178,2]
[346264385,1734850232499,-500.0,0.00019178,2]
[346264388,1734850232512,-500.0,0.00019178,2]
[346264390,1734850232526,-500.0,0.00019178,2]
[346264392,1734850232538,-500.0,0.00019178,2]
[346264395,1734850232551,-500.14437083,0.00019178,2]
[346264396,1734850232564,-500.0,0.00019178,2]
[346264397,1734850232577,-1885.08,0.00019178,2]
[346264398,1734850232594,-500.0,0.00019178,2]
[346264399,1734850232606,-500.0,0.00019178,2]
[346264400,1734850232619,-500.0,0.00019178,2]
[346264401,1734850232631,-500.0,0.00019178,2]
[346264402,1734850232642,-426.84,0.00019178,2]
[346264403,1734850232654,-552.29,0.00019178,2]
[346264404,1734850232669,-500.0,0.00019178,2]
[346264405,1734850232681,-878.96,0.00019178,2]
[346264406,1734850232694,-500.0,0.00019178,2]
[346264407,1734850232707,-840.44,0.00019178,2]
[346264408,1734850232720,-500.0,0.00019178,2]
[346264409,1734850232732,-500.0,0.00019178,2]
[346264410,1734850232744,-500.0,0.00019178,2]
[346264411,1734850232755,-500.0,0.00019178,2]
[346264412,1734850232765,-500.0,0.00019178,2]
[346264413,1734850232776,-500.0,0.00019178,2]
[346264414,1734850232786,-500.0,0.00019178,2]
[346264415,1734850232798,-500.0,0.00019178,2]
[346264416,1734850232811,-500.0,0.00019178,2]
[346264417,1734850232823,-500.0,0.00019178,2]
[346264418,1734850232833,-500.0,0.00019178,2]
[346264419,1734850232844,-500.0,0.00019178,2]
[346264420,1734850232854,-500.0,0.00019178,2]
[346264421,1734850232865,-500.0,0.00019178,2]
[346264422,1734850232877,-500.0,0.00019178,2]
[346264423,1734850232889,-500.0,0.00019178,2]
[346264424,1734850232901,-500.0,0.00019178,2]
[346264425,1734850232913,-500.0,0.00019178,2]
[346264426,1734850232923,-500.0,0.00019178,2]
[346264427,1734850232934,-500.0,0.00019178,2]
[346264428,1734850232944,-500.0,0.00019178,2]
[346264429,1734850232955,-500.0,0.00019178,2]
[346264430,1734850232967,-500.0,0.00019178,2]
[346264431,1734850232983,-500.0,0.00019178,2]
[346264432,1734850232996,-586.84,0.00019178,2]
[346264433,1734850233007,-500.0,0.00019178,2]
[346264434,1734850233017,-500.0,0.00019178,2]
[346264435,1734850233028,-500.0,0.00019178,2]
[346264436,1734850233039,-500.0,0.00019178,2]
[346264437,1734850233054,-537.51622603,0.00019178,2]
[346264438,1734850233065,-500.0,0.00019178,2]
[346264439,1734850233076,-500.0,0.00019178,2]
[346264440,1734850233087,-500.0,0.00019178,2]
[346264441,1734850233097,-923.20078,0.00019178,2]
[346264442,1734850233108,-500.0,0.00019178,2]
[346264443,1734850233119,-500.0,0.00019178,2]
[346264444,1734850233131,-510.90635241,0.00019178,2]
[346264445,1734850233142,-500.0,0.00019178,2]
[346264446,1734850233153,-500.0,0.00019178,2]
[346264447,1734850233166,-500.0,0.00019178,2]
[346264448,1734850233178,-1345.3,0.00019178,2]
[346264449,1734850233189,-502.81891276,0.00019178,2]
[346264450,1734850233201,-500.0,0.00019178,2]
[346264451,1734850233213,-500.0,0.00019178,2]
[346264452,1734850233224,-500.0,0.00019178,2]
[346264453,1734850233236,-500.0,0.00019178,2]
[346264454,1734850233247,-196.72968451,0.00019178,2]
[346264455,1734850233259,-607.06,0.00019178,2]
[346264456,1734850233270,-1200.485875,0.00019178,2]
[346264457,1734850233281,-500.0,0.00019178,2]
[346264458,1734850233293,-500.0,0.00019178,2]
[346264459,1734850233304,-500.0,0.00019178,2]
[346264460,1734850233316,-500.0,0.00019178,2]
[346264461,1734850233327,-500.0,0.00019178,2]
[346264462,1734850233338,-500.0,0.00019178,2]
[346264463,1734850233349,-500.0,0.00019178,2]
[346264464,1734850233360,-500.0,0.00019178,2]
[346264465,1734850233371,-500.0,0.00019178,2]
[346264466,1734850233382,-500.0,0.00019178,2]
[346264467,1734850233393,-500.0,0.00019178,2]
[346264468,1734850233404,-156.85010447,0.00019178,2]
[346264469,1734850233416,-500.0,0.00019178,2]
[346264470,1734850233427,-500.0,0.00019178,2]
[346264471,1734850233441,-500.0,0.00019178,2]
[346264472,1734850233452,-909.34,0.00019178,2]
[346264473,1734850233463,-500.0,0.00019178,2]
[346264474,1734850233473,-500.0,0.00019178,2]
[346264475,1734850233485,-500.0,0.00019178,2]
[346264476,1734850233497,-500.0,0.00019178,2]
[346264477,1734850233509,-500.0,0.00019178,2]
[346264478,1734850233520,-500.0,0.00019178,2]
[346264479,1734850233531,-500.0,0.00019178,2]
[346264480,1734850233542,-500.0,0.00019178,2]
[346264481,1734850233553,-160.15208021,0.00019178,2]
[346264482,1734850233564,-371.38986763,0.00019178,2]
[346264483,1734850233575,-500.0,0.00019178,2]
[346264484,1734850233586,-500.0,0.00019178,2]
[346264485,1734850233597,-718.98,0.00019178,2]
[346264486,1734850233608,-500.0,0.00019178,2]
[346264487,1734850233619,-1231.57,0.00019178,2]
[346264488,1734850233630,-500.0,0.00019178,2]
[346264489,1734850233640,-500.0,0.00019178,2]
[346264490,1734850233652,-500.0,0.00019178,2]
[346264491,1734850233663,-629.06194873,0.00019178,2]
[346264492,1734850233674,-500.0,0.00019178,2]
[346264493,1734850233685,-1584.75,0.00019178,2]
[346264494,1734850233696,-500.0,0.00019178,2]
[346264495,1734850233707,-796.99,0.00019178,2]
[346264496,1734850233719,-500.0,0.00019178,2]
[346264497,1734850233729,-500.0,0.00019178,2]
[346264498,1734850233740,-500.0,0.00019178,2]
[346264499,1734850233751,-500.0,0.00019178,2]
[346264500,1734850233762,-591.15201719,0.00019178,2]
[346264501,1734850233773,-523.43,0.00019178,2]
[346264502,1734850233784,-500.0,0.00019178,2]
[346264503,1734850233795,-500.0,0.00019178,2]
[346264504,1734850233806,-500.0,0.00019178,2]
[346264505,1734850233817,-500.0,0.00019178,2]
[346264506,1734850233829,-500.0,0.00019178,2]
[346264507,1734850233839,-500.0,0.00019178,2]
[346264508,1734850233851,-500.0,0.00019178,2]
[346264509,1734850233862,-500.0,0.00019178,2]
[346264510,1734850233873,-500.0,0.00019178,2]
[346264511,1734850233884,-500.0,0.00019178,2]
[346264512,1734850233895,-500.0,0.00019178,2]
[346264513,1734850233907,-500.0,0.00019178,2]
[346264514,1734850233918,-500.0,0.00019178,2]
[346264515,1734850233930,-532.61,0.00019178,2]
[346264516,1734850233941,-500.0,0.00019178,2]
[346264517,1734850233952,-495.14654297,0.00019178,2]
[346264518,1734850233963,-500.0,0.00019178,2]
[346264519,1734850233974,-500.0,0.00019178,2]
[346264520,1734850233986,-500.0,0.00019178,2]
[346264521,1734850233997,-500.0,0.00019178,2]
[346264522,1734850234008,-500.0,0.00019178,2]
[346264523,1734850234019,-248.64512297,0.00019178,2]
[346264524,1734850234030,-500.0,0.00019178,2]
[346264525,1734850234042,-506.8899845,0.00019178,2]
[346264526,1734850234054,-476.44407638,0.00019178,2]
[346264527,1734850234065,-500.0,0.00019178,2]
[346264528,1734850234076,-649.16,0.00019178,2]
[346264529,1734850234088,-500.0,0.00019178,2]
[346264530,1734850234099,-500.0,0.00019178,2]
[346264531,1734850234111,-500.0,0.00019178,2]
[346264532,1734850234122,-500.0,0.00019178,2]
[346264533,1734850234134,-500.5,0.00019178,2]
[346264534,1734850234145,-500.0,0.00019178,2]
[346264535,1734850234158,-647.16,0.00019178,2]
[346264536,1734850234168,-550.05,0.00019178,2]
[346264537,1734850234182,-500.0,0.00019178,2]
[346264538,1734850234192,-544.5,0.00019178,2]
[346264539,1734850234202,-1000.0,0.00019178,2]
[346264540,1734850234212,-1371.93,0.00019178,2]
[346264541,1734850234221,-500.0,0.00019178,2]
[346264542,1734850234231,-500.0,0.00019178,2]
[346264543,1734850234242,-782.26,0.00019178,2]
[346264544,1734850234251,-500.0,0.00019178,2]
[346264545,1734850234261,-854.97,0.00019178,2]
[346264546,1734850234271,-818.13,0.00019178,2]
[346264547,1734850234280,-500.0,0.00019178,2]
[346264548,1734850234566,-873.15,0.00019178,2]
[346264549,1734850234580,-500.0,0.00019178,2]
[346264550,1734850234589,-500.0,0.00019178,2]
[346264551,1734850234598,-578.15,0.00019178,2]
[346264552,1734850234608,-500.0,0.00019178,2]
[346264553,1734850234616,-908.29,0.00019178,2]
[346264554,1734850234626,-500.0,0.00019178,2]
[346264555,1734850234634,-500.0,0.00019178,2]
[346264556,1734850234644,-500.0,0.00019178,2]
[346264557,1734850234653,-500.0,0.00019178,2]
[346264558,1734850234662,-4350.06,0.00019178,2]
[346264559,1734850234671,-500.0,0.00019178,2]
[346264560,1734850234680,-500.0,0.00019178,2]
[346264561,1734850234689,-3809.8,0.00019178,2]
[346264562,1734850234700,-500.0,0.00019178,2]
[346264563,1734850234709,-956.74,0.00019178,2]
[346264564,1734850234719,-500.0,0.00019178,2]
[346264565,1734850234728,-825.0,0.00019178,2]
[346264566,1734850234740,-771.47,0.00019178,2]
[346264567,1734850234750,-568.13,0.00019178,2]
[346264568,1734850234761,-4621.4,0.00019178,2]
[346264569,1734850234771,-1754.6,0.00019178,2]
[346264570,1734850234783,-500.0,0.00019178,2]
[346264571,1734850234792,-596.36,0.00019178,2]
[346264572,1734850234801,-500.0,0.00019178,2]
[346264573,1734850234811,-500.0,0.00019178,2]
[346264574,1734850234821,-500.0,0.00019178,2]
[346264575,1734850234833,-2476.22,0.00019178,2]
[346264576,1734850234843,-500.0,0.00019178,2]
[346264577,1734850234852,-500.0,0.00019178,2]
[346264578,1734850234864,-562.12,0.00019178,2]
[346264579,1734850234873,-923.51,0.00019178,2]
[346264580,1734850234885,-500.0,0.00019178,2]
[346264581,1734850234896,-500.0,0.00019178,2]
[346264582,1734850234906,-500.0,0.00019178,2]
[346264583,1734850234915,-1377.92,0.00019178,2]
[346264584,1734850234924,-500.0,0.00019178,2]
[346264585,1734850234933,-500.0,0.00019178,2]
[346264586,1734850234943,-951.29,0.00019178,2]
[346264587,1734850234952,-549.62,0.00019178,2]
[346264588,1734850234961,-1800.53,0.00019178,2]
[346264589,1734850234971,-500.0,0.00019178,2]
[346264590,1734850234980,-598.53,0.00019178,2]
[346264591,1734850234989,-3333.26,0.00019178,2]
[346264592,1734850234998,-851.81,0.00019178,2]
[346264593,1734850235007,-706.82,0.00019178,2]
[346264594,1734850235016,-500.0,0.00019178,2]
[346264595,1734850235025,-717.18,0.00019178,2]
[346264596,1734850235034,-742.14,0.00019178,2]
[346264597,1734850235043,-500.0,0.00019178,2]
[346264598,1734850235052,-173.96458607,0.00019178,2]
[346264599,1734850235061,-699.75,0.00019178,2]
[346264600,1734850235070,-1007.16,0.00019178,2]
[346264601,1734850235079,-500.0,0.00019178,2]
[346264602,1734850235088,-6041.04,0.00019178,2]